bitfinex-derivatives/quotes_SOLF0:USTF0_20250905
["timestamp","ask_amount","ask_price","bid_price","bid_amount"]
[1757088795064,7.57593877,203.38,203.34,8.05]
[1757088795260,0.03593877,203.38,203.33,2.16408288]
[1757088795866,0.03593877,203.38,203.36,8.05]
[1757088796064,0.03593877,203.38,203.35,10.21408288]
[1757088797066,0.03593877,203.38,203.35,8.05]
[1757088797270,7.54,203.37,203.33,10.21408288]
[1757088797769,0.03593877,203.38,203.34,8.05]
[1757088799266,0.03593877,203.38,203.33,2.16408288]
[1757088799567,7.6,203.33,203.2,4.12267348]
[1757088799762,2.16408288,203.31,203.21,7.47]
[1757088799964,2.16408288,203.31,203.25,2.16408288]
[1757088800159,0.03394492,203.28,203.25,2.16408288]
[1757088800368,0.03394492,203.28,203.26,7.47]
[1757088800563,0.03394492,203.28,203.27,9.63408288]
[1757088800870,4.923,203.36,203.33,2.16408288]
[1757088801365,7.6,203.47,203.35,2.16408288]
[1757088801570,2.16408288,203.43,203.35,2.16408288]
[1757088801966,2.16408288,203.43,203.36,2.16408288]
[1757088802265,4.923,203.42,203.36,2.16408288]
[1757088802571,2.16408288,203.43,203.36,2.16408288]
[1757088803370,4.923,203.42,203.36,2.16408288]
[1757088803970,2.16408288,203.43,203.36,9.63408288]
[1757088804166,7.6,203.5,203.38,2.16408288]
[1757088804372,2.16408288,203.47,203.4,2.16408288]
[1757088804771,2.16408288,203.47,203.39,7.47]
[1757088804772,4.923,203.46,203.39,7.47]
[1757088805071,2.16408288,203.44,203.38,9.63408288]
[1757088806069,2.16408288,203.44,203.38,7.47]
[1757088807570,2.16408288,203.44,203.38,9.63408288]
[1757088808267,2.16408288,203.44,203.38,7.47]
[1757088808666,2.16408288,203.42,203.38,7.47]
[1757088808872,9.76408288,203.42,203.38,7.47]
[1757088809174,2.16408288,203.4,203.34,9.63408288]
[1757088809366,2.16408288,203.4,203.34,7.47]
[1757088809566,2.16408288,203.41,203.34,9.63408288]
[1757088810167,4.923,203.48,203.38,9.63408288]
[1757088810370,2.16408288,203.45,203.38,9.63408288]
[1757088810966,2.16408288,203.48,203.4,2.16408288]
[1757088811473,4.923,203.47,203.4,2.16408288]
[1757088811677,4.923,203.47,203.38,7.47]
[1757088811971,4.923,203.47,203.4,2.16408288]
[1757088812372,7.08708288,203.48,203.4,2.16408288]
[1757088812573,7.08708288,203.48,203.42,2.16408288]
[1757088812774,4.923,203.48,203.42,9.63408288]
[1757088812963,4.923,203.48,203.45,7.47]
[1757088813673,4.923,203.49,203.45,7.47]
[1757088814770,4.923,203.47,203.41,2.16408288]
[1757088815774,7.6,203.5,203.41,2.16408288]
[1757088815979,2.16408288,203.49,203.41,2.16408288]
[1757088816177,7.6,203.5,203.41,2.16408288]
[1757088816370,2.16408288,203.52,203.45,2.16408288]
[1757088816871,7.6,203.53,203.47,2.16408288]
[1757088817071,9.76408288,203.53,203.47,2.16408288]
[1757088817268,7.6,203.53,203.47,2.16408288]
[1757088817774,2.16408288,203.5,203.43,2.16408288]
[1757088817972,7.08708288,203.5,203.43,2.16408288]
[1757088818476,4.923,203.5,203.44,2.16408288]
[1757088818876,7.08708288,203.5,203.44,2.16408288]
[1757088819777,4.923,203.51,203.43,7.47]
[1757088820481,7.6,203.52,203.43,7.47]
[1757088822985,7.6,203.52,203.44,3.38305327]
[1757088825387,12.523,203.52,203.45,7.47]
[1757088826378,0.85554135,203.58,203.45,7.47]
[1757088826379,4.923,203.56,203.45,7.47]
[1757088826580,4.923,203.56,203.48,7.47]
[1757088827487,0.03579342,203.54,203.5,3.41702101]
[1757088827990,0.03579342,203.54,203.51,7.47]
[1757088828183,0.03579342,203.54,203.5,3.41702101]
[1757088828983,0.03579342,203.54,203.53,3.38305327]
[1757088829190,0.03579342,203.54,203.53,11.38305327]
[1757088834089,0.03579342,203.54,203.53,8.0]
[1757088834285,0.03579342,203.54,203.53,11.38305327]
[1757088835096,0.03579342,203.54,203.53,137.10305327]
[1757088836900,0.03579342,203.54,203.53,11.38305327]
[1757088837096,0.03579342,203.54,203.53,137.08305327]
[1757088837294,0.03579342,203.54,203.53,125.68]
[1757088837900,0.03579342,203.54,203.52,125.68]
[1757088838100,0.03579342,203.54,203.52,133.68]
[1757088838398,0.03579342,203.54,203.52,8.0]
[1757088838600,0.03579342,203.54,203.52,133.68]
[1757088839595,0.03579342,203.54,203.5,3.41702101]
[1757088839798,0.03579342,203.54,203.53,11.38305327]
[1757088840399,0.03579342,203.54,203.53,3.38305327]
[1757088840595,0.03579342,203.54,203.51,133.68]
[1757088840800,0.03579342,203.54,203.52,8.0]
[1757088840991,7.49,203.53,203.5,0.03396774]
[1757088841194,7.49,203.53,203.5,62.47396774]
[1757088841597,0.03579342,203.54,203.5,0.03396774]
[1757088841801,7.49,203.53,203.5,0.03396774]
[1757088842302,0.03579342,203.54,203.5,0.03396774]
[1757088842798,7.49,203.53,203.5,0.03396774]
[1757088843100,0.03579342,203.54,203.5,0.03396774]
[1757088844201,7.49,203.53,203.5,0.03396774]
[1757088844499,0.03579342,203.54,203.5,0.03396774]
[1757088844700,7.49,203.52,203.5,0.03396774]
[1757088844900,4.923,203.53,203.5,0.03396774]
[1757088845202,7.49,203.53,203.5,0.03396774]
[1757088845392,0.03579342,203.54,203.5,0.03396774]
[1757088845596,7.49,203.53,203.5,0.03396774]
[1757088845798,0.03579342,203.54,203.5,0.03396774]
[1757088846801,7.49,203.53,203.5,0.03396774]
[1757088846997,0.03579342,203.54,203.5,0.03396774]
[1757088847408,7.49,203.53,203.5,0.03396774]
[1757088847608,0.03579342,203.54,203.5,0.03396774]
[1757088849508,7.49,203.53,203.5,0.03396774]
[1757088850098,0.03579342,203.54,203.5,0.03396774]
[1757088850504,0.03579342,203.54,203.5,8.03396774]
[1757088851108,7.49,203.53,203.5,0.03396774]
[1757088851809,0.03579342,203.54,203.5,8.03396774]
[1757088852310,0.03579342,203.54,203.51,8.0]
[1757088852710,0.03579342,203.54,203.5,0.03396774]
[1757088853011,0.03579342,203.54,203.51,8.0]
[1757088854413,7.52579342,203.54,203.5,0.03396774]
[1757088854608,7.52579342,203.54,203.5,8.03396774]
[1757088855109,7.49,203.53,203.5,0.03396774]
[1757088855510,0.03579342,203.54,203.5,0.03396774]
[1757088856113,7.49,203.53,203.5,0.03396774]
[1757088856612,0.03579342,203.54,203.5,0.03396774]
[1757088857004,7.49,203.53,203.5,0.03396774]
[1757088857205,0.03579342,203.54,203.5,0.03396774]
[1757088857403,7.49,203.53,203.5,0.03396774]
[1757088857608,0.03579342,203.54,203.5,0.03396774]
[1757088858311,3.38305327,203.53,203.5,0.03396774]
[1757088859114,7.49,203.52,203.5,0.03396774]
[1757088860019,3.38305327,203.53,203.5,0.03396774]
[1757088860220,7.49,203.52,203.5,0.03396774]
[1757088861116,0.03579342,203.54,203.5,0.03396774]
[1757088862216,3.38305327,203.52,203.5,0.03396774]
[1757088862424,7.49,203.51,203.5,0.03396774]
[1757088862918,7.99,203.51,203.5,0.03396774]
[1757088864224,7.49,203.51,203.5,0.03396774]
[1757088864626,10.87305327,203.51,203.5,0.03396774]
[1757088865724,7.49,203.51,203.5,0.03396774]
[1757088866821,11.37305327,203.51,203.39,7.59]
[1757088867021,7.49,203.46,203.39,7.59]
[1757088868026,0.03575893,203.45,203.39,7.59]
[1757088870420,0.03575893,203.45,203.44,3.38305327]
[1757088870631,0.03575893,203.45,203.44,10.97305327]
[1757088873028,0.03575893,203.45,203.44,11.47305327]
[1757088875025,0.03575893,203.45,203.44,10.97305327]
[1757088876225,0.03575893,203.45,203.44,7.59]
[1757088881535,0.03575893,203.45,203.44,9.75490307]
[1757088881732,0.03575893,203.45,203.35,4.12621589]
[1757088881931,0.03575893,203.45,203.42,7.59]
[1757088882336,0.03575893,203.45,203.4,2.16490307]
[1757088882733,0.03575893,203.45,203.43,7.59]
[1757088882933,0.03575893,203.45,203.42,2.16490307]
[1757088883234,0.03575893,203.45,203.43,7.59]
[1757088883436,0.03575893,203.45,203.39,7.59]
[1757088883735,0.03575893,203.45,203.42,7.59]
[1757088884237,0.03575893,203.45,203.4,2.16490307]
[1757088884437,7.52575893,203.45,203.41,7.59]
[1757088886840,0.03575893,203.45,203.4,2.16490307]
[1757088887031,0.03575893,203.45,203.41,7.59]
[1757088887236,0.03575893,203.45,203.43,7.59]
[1757088887437,0.03575893,203.45,203.42,2.16490307]
[1757088887744,0.03575893,203.45,203.43,7.59]
[1757088888037,0.03575893,203.45,203.42,2.16490307]
[1757088888238,0.03575893,203.45,203.43,7.36]
[1757088888742,0.03575893,203.45,203.44,2.16490307]
[1757088889245,0.03575893,203.45,203.42,2.16490307]
[1757088889435,0.03575893,203.45,203.42,9.52490307]
[1757088890243,0.03575893,203.45,203.36,7.36]
[1757088890438,0.03575893,203.45,203.36,132.66]
[1757088890439,2.16490307,203.44,203.36,132.66]
[1757088890638,2.16490307,203.44,203.38,2.16490307]
[1757088892343,0.03575893,203.45,203.39,2.16490307]
[1757088892543,0.03575893,203.45,203.41,2.16490307]
[1757088892945,0.03575893,203.45,203.36,125.3]
[1757088892946,0.03575893,203.45,203.44,7.36]
[1757088893944,0.03575893,203.45,203.44,9.52490307]
[1757088895751,4.923,203.52,203.45,7.36]
[1757088895946,4.923,203.52,203.48,2.16490307]
[1757088896249,8.25266717,203.73,203.5,2.16490307]
[1757088896250,7.79,203.54,203.5,2.16490307]
[1757088896451,4.923,203.54,203.5,2.16490307]
[1757088896754,7.79,203.53,203.5,2.16490307]
[1757088897146,4.923,203.55,203.44,7.36]
[1757088897347,4.923,203.55,203.51,9.52490307]
[1757088897546,4.923,203.56,203.51,9.52490307]
[1757088897747,12.713,203.55,203.51,9.52490307]
[1757088898150,7.79,203.55,203.51,9.52490307]
[1757088899152,7.79,203.56,203.51,2.16490307]
[1757088899452,4.923,203.59,203.48,2.16490307]
[1757088899453,7.79,203.54,203.48,2.16490307]
[1757088900350,2.16490307,203.53,203.44,7.36]
[1757088900555,7.79,203.52,203.45,2.16490307]
[1757088900755,2.16490307,203.51,203.45,2.16490307]
[1757088901255,7.79,203.52,203.45,2.16490307]
[1757088901656,12.713,203.51,203.47,9.52490307]
[1757088903754,4.923,203.52,203.48,7.36]
[1757088904053,9.95490307,203.53,203.48,7.36]
[1757088904260,7.79,203.52,203.48,7.36]
[1757088905856,7.79,203.51,203.47,9.52490307]
[1757088906161,4.923,203.52,203.48,7.36]
[1757088906460,12.713,203.52,203.48,7.36]
[1757088907361,12.713,203.52,203.42,55.44]
[1757088907362,12.713,203.52,203.47,9.52490307]
[1757088907560,2.16490307,203.53,203.47,7.36]
[1757088907860,9.95490307,203.53,203.47,9.52490307]
[1757088908157,9.95490307,203.53,203.47,2.16490307]
[1757088908461,7.79,203.53,203.47,2.16490307]
[1757088908659,2.16490307,203.52,203.47,2.16490307]
[1757088908956,7.79,203.51,203.47,2.16490307]
[1757088909462,7.79,203.51,203.43,7.36]
[1757088909660,7.79,203.51,203.46,9.52490307]
[1757088910153,7.79,203.51,203.46,2.16490307]
[1757088910462,7.79,203.52,203.48,9.52490307]
[1757088910661,4.923,203.53,203.48,9.52490307]
[1757088911260,4.923,203.59,203.48,7.36]
[1757088911464,7.79,203.52,203.48,7.36]
[1757088911658,7.08790307,203.53,203.46,2.16490307]
[1757088911858,7.79,203.52,203.46,2.16490307]
[1757088912062,7.79,203.51,203.48,0.03468522]
[1757088913468,7.79,203.51,203.48,2.19958829]
[1757088914856,0.03125652,203.52,203.48,0.03468522]
[1757088915565,7.79,203.51,203.48,0.03468522]
[1757088916270,0.03125652,203.52,203.48,0.03468522]
[1757088916465,7.79,203.51,203.48,0.03468522]
[1757088917270,0.03125652,203.52,203.48,0.03468522]
[1757088917472,7.79,203.51,203.48,0.03468522]
[1757088918272,7.84,203.51,203.48,0.03468522]
[1757088919267,7.84,203.5,203.48,0.03468522]
[1757088919471,7.84,203.49,203.48,0.03468522]
[1757088919973,8.34,203.49,203.38,2.16490307]
[1757088920268,10.00490307,203.44,203.38,2.16490307]
[1757088921279,7.87103753,203.43,203.39,7.84]
[1757088921671,7.84,203.42,203.39,7.84]
[1757088921873,7.84,203.42,203.37,2.16490307]
[1757088922074,7.84,203.42,203.37,10.00490307]
[1757088922270,2.16490307,203.43,203.37,10.00490307]
[1757088922575,7.84,203.41,203.37,10.00490307]
[1757088923076,0.03719481,203.42,203.3,316.64]
[1757088923267,7.84,203.41,203.35,2.16490307]
[1757088923769,7.8725698,203.4,203.35,10.00490307]
[1757088924773,7.8725698,203.4,203.35,2.16490307]
[1757088924972,0.0325698,203.4,203.38,7.84]
[1757088926373,0.0325698,203.4,203.39,10.00490307]
[1757088926780,0.0325698,203.4,203.39,7.84]
[1757088926980,0.0325698,203.4,203.39,10.00490307]
[1757088929980,7.8725698,203.4,203.37,2.16490307]
[1757088930982,7.8725698,203.4,203.35,2.16490307]
[1757088931181,7.8725698,203.4,203.35,10.00490307]
[1757088932080,7.84,203.39,203.35,10.00490307]
[1757088933891,7.84,203.39,203.36,7.84]
[1757088934091,2.16490307,203.38,203.31,7.84]
[1757088934292,7.84,203.39,203.31,7.84]
[1757088934590,10.00490307,203.37,203.31,7.84]
[1757088934796,10.00490307,203.37,203.28,124.88]
[1757088934797,2.16490307,203.35,203.28,134.86490307]
[1757088935100,7.84,203.34,203.28,132.7]
[1757088935283,7.84,203.43,203.32,7.84]
[1757088935488,0.03204382,203.34,203.33,7.84]
[1757088935793,2.16490307,203.42,203.33,10.00490307]
[1757088935992,0.03729863,203.36,203.35,7.84]
[1757088936491,7.84,203.43,203.35,7.84]
[1757088936692,0.03455905,203.38,203.34,124.86]
[1757088936994,0.03455905,203.38,203.35,7.84]
[1757088937195,0.03455905,203.38,203.37,10.00490307]
[1757088937495,7.84,203.47,203.37,10.00490307]
[1757088937682,7.84,203.48,203.42,2.16490307]
[1757088938784,10.00490307,203.5,203.44,2.16490307]
[1757088938992,7.84,203.5,203.44,2.16490307]
[1757088939192,7.84,203.5,203.46,2.16490307]
[1757088939889,7.84,203.5,203.46,10.00490307]
[1757088940098,8.25266717,203.74,203.46,10.00490307]
[1757088940099,7.84,203.56,203.48,2.16490307]
[1757088940300,10.00490307,203.56,203.5,2.16490307]
[1757088940494,10.00490307,203.56,203.49,2.16490307]
[1757088941598,7.84,203.56,203.46,11.22148143]
[1757088943291,7.84,203.56,203.46,3.38148143]
[1757088943492,7.84,203.56,203.47,7.84]
[1757088943793,7.84,203.56,203.49,3.38148143]
[1757088946203,7.84,203.6,203.5,7.84]
[1757088946601,7.84,203.6,203.52,3.38148143]
[1757088949205,7.84,203.6,203.53,7.65]
[1757088950492,11.22148143,203.6,203.49,3.38148143]
[1757088950799,11.22148143,203.6,203.49,11.03148143]
[1757088951003,8.06,203.59,203.49,11.03148143]
[1757088953204,8.06,203.59,203.49,7.65]
[1757088953606,8.06,203.57,203.49,7.65]
[1757088954096,4.923,203.56,203.49,7.65]
[1757088954698,8.06,203.57,203.49,11.03148143]
[1757088955294,4.923,203.6,203.5,7.65]
[1757088955607,8.06,203.6,203.5,7.65]
[1757088957808,8.06,203.51,203.4,3.38148143]
[1757088958001,8.06,203.51,203.41,7.65]
[1757088960304,18.14148143,203.6,203.41,7.65]
[1757088960305,8.06,203.48,203.41,7.65]
[1757088960705,8.06,203.45,203.37,7.65]
[1757088962404,3.38148143,203.43,203.37,7.65]
[1757088962709,8.06,203.45,203.37,7.65]
[1757088962710,3.38148143,203.44,203.37,7.65]
[1757088963510,3.38148143,203.44,203.33,448.93]
[1757088963809,3.38148143,203.5,203.33,324.37]
[1757088963810,3.38148143,203.41,203.33,324.37]
[1757088964200,8.06,203.43,203.34,7.65]
[1757088965004,8.06,203.43,203.34,3.38148143]
[1757088965211,8.06,203.43,203.35,7.65]
[1757088965604,8.06,203.43,203.35,12.0755]
[1757088965911,3.38148143,203.46,203.36,7.65]
[1757088968708,3.38148143,203.46,203.36,11.03148143]
[1757088968910,8.06,203.45,203.36,11.03148143]
[1757088969807,8.06,203.45,203.36,135.55148143]
[1757088970011,8.06,203.45,203.36,11.03148143]
[1757088970608,8.06,203.45,203.36,7.65]
[1757088971313,8.06,203.42,203.36,7.65]
[1757088972510,8.06,203.42,203.33,316.72]
[1757088973113,8.06,203.42,203.34,7.65]
[1757088977818,11.44148143,203.42,203.34,7.65]
[1757088978518,7.71,203.41,203.31,132.38]
[1757088979820,7.71,203.41,203.32,7.9]
[1757088981612,11.09148143,203.41,203.32,7.9]
[1757088982522,7.71,203.37,203.27,57.16]
[1757088983419,7.71,203.37,203.28,7.9]
[1757088989920,3.38148143,203.32,203.17,108.59103169]
[1757088990124,7.71,203.25,203.15,7.9]
[1757088991325,3.38148143,203.23,203.07,5.0]
[1757088991520,7.71,203.22,203.11,7.9]
[1757088992917,7.71,203.25,203.14,7.9]
[1757088993624,7.71,203.25,203.15,7.9]
[1757088994622,3.38148143,203.27,203.17,7.9]
[1757088994825,7.71,203.29,203.17,7.9]
[1757088995217,7.71,203.29,203.18,7.9]
[1757088995421,7.71,203.29,203.2,7.9]
[1757088997422,7.71,203.26,203.15,7.9]
[1757088999332,7.71,203.26,203.17,7.9]
[1757088999828,27.54,203.34,203.17,7.9]
[1757089000024,11.09148143,203.3,203.17,7.9]
[1757089003525,2.17031345,203.26,203.19,2.17031345]
[1757089004134,2.17031345,203.22,203.17,7.9]
[1757089004331,7.71,203.21,203.14,2.17031345]
[1757089005136,7.71,203.21,203.13,7.9]
[1757089005437,7.71,203.21,203.15,2.17031345]
[1757089006431,7.71,203.21,203.13,7.9]
[1757089006636,7.71,203.21,203.14,2.17031345]
[1757089007431,5.42711168,203.28,203.17,7.9]
[1757089007631,7.71,203.27,203.17,7.9]
[1757089008426,7.71,203.27,203.16,39.06]
[1757089008631,7.71,203.27,203.17,8.03]
[1757089009038,7.42,203.32,203.2,8.03]
[1757089009939,7.42,203.32,203.22,8.03]
[1757089011440,5.42711168,203.33,203.18,13.45711168]
[1757089011640,7.42,203.32,203.18,8.03]
[1757089012740,12.84711168,203.32,203.18,8.03]
[1757089014034,14.77,203.37,203.18,8.03]
[1757089014035,5.42711168,203.29,203.18,8.03]
[1757089014238,19.694,203.37,203.12,5.42711168]
[1757089014239,7.42,203.27,203.13,35.31]
[1757089014439,7.42,203.27,203.14,8.03]
[1757089022549,7.42,203.24,203.14,8.03]
[1757089023144,7.42,203.24,203.08,40.96]
[1757089023145,7.42,203.2,203.1,8.03]
[1757089026150,7.42,203.2,203.12,8.03]
[1757089026448,5.42711168,203.24,203.12,8.03]
[1757089026449,12.84711168,203.24,203.12,8.03]
[1757089027549,2.17169031,203.2,203.13,2.17169031]
[1757089028147,7.42,203.21,203.12,8.03]
[1757089028148,2.17169031,203.18,203.12,8.03]
[1757089028453,2.17169031,203.14,203.07,5.0]
[1757089028656,7.42,203.11,203.07,5.0]
[1757089028855,2.17169031,203.1,203.07,5.0]
[1757089029354,2.17169031,203.11,203.07,13.03]
[1757089029546,9.59169031,203.11,203.07,5.0]
[1757089029750,2.17169031,203.11,203.07,5.0]
[1757089029955,7.42,203.1,203.07,5.0]
[1757089030957,2.17169031,203.09,203.07,5.0]
[1757089031162,9.59169031,203.09,203.07,5.0]
[1757089031658,7.42,203.09,203.07,5.0]
[1757089031956,5.43522524,203.14,203.07,5.0]
[1757089031957,7.42,203.13,203.07,5.0]
[1757089041065,7.89,203.11,203.07,5.0]
[1757089041370,7.89,203.08,203.07,5.0]
[1757089041668,7.89,203.08,202.99,7.6]
[1757089042462,7.89,203.11,202.99,7.6]
[1757089042859,0.03473169,203.07,202.99,7.6]
[1757089048069,0.03473169,203.07,203.01,0.03122185]
[1757089048274,7.89,203.06,203.01,0.03122185]
[1757089048576,7.92473169,203.07,203.01,0.03122185]
[1757089050674,0.03473169,203.07,203.01,0.03122185]
[1757089051271,0.03473169,203.07,203.02,7.6]
[1757089052572,0.03473169,203.07,203.01,7.63122185]
[1757089053772,7.89,203.05,203.01,0.03122185]
[1757089053974,10.06437082,203.04,203.01,0.03122185]
[1757089055177,7.89,203.04,203.01,0.03122185]
[1757089055377,2.17437082,203.03,203.01,0.03122185]
[1757089055976,2.17437082,203.04,203.01,0.03122185]
[1757089056176,2.17437082,203.06,203.02,7.6]
[1757089056377,10.06437082,203.06,203.01,0.03122185]
[1757089056981,2.17437082,203.05,203.01,0.03122185]
[1757089057179,7.89,203.02,203.01,0.03122185]
[1757089057381,0.03473169,203.07,203.01,0.03122185]
[1757089057586,2.17437082,203.04,203.01,0.03122185]
[1757089058182,10.06437082,203.04,203.01,0.03122185]
[1757089058382,2.17437082,203.02,203.01,0.03122185]
[1757089058582,10.06437082,203.02,203.01,0.03122185]
[1757089058784,2.17437082,203.03,203.01,0.03122185]
[1757089059180,7.92473169,203.07,203.01,0.03122185]
[1757089059383,7.89,203.03,203.01,0.03122185]
[1757089059784,10.06437082,203.03,203.01,0.03122185]
[1757089060986,2.17437082,203.03,203.01,0.03122185]
[1757089061183,2.17437082,203.05,203.01,7.63122185]
[1757089061387,2.17437082,203.06,203.02,7.6]
[1757089061982,0.03473169,203.07,203.01,7.63122185]
[1757089062385,2.17437082,203.04,203.01,0.03122185]
[1757089062689,10.06437082,203.04,203.01,0.03122185]
[1757089062984,10.06437082,203.02,203.01,0.03122185]
[1757089063393,2.17437082,203.02,203.01,0.03122185]
[1757089063789,2.17437082,203.04,203.01,0.03122185]
[1757089064088,10.06437082,203.06,203.01,0.03122185]
[1757089064291,7.89,203.05,203.01,0.03122185]
[1757089065087,7.89,203.05,203.01,7.63122185]
[1757089066690,0.03473169,203.07,203.01,7.63122185]
[1757089074598,7.55473169,203.07,203.01,0.03122185]
[1757089075996,3.39807291,203.02,203.01,0.03122185]
[1757089076298,12.86377781,203.02,203.01,0.03122185]
[1757089077202,13.36377781,203.02,203.01,0.03122185]
[1757089077604,12.86377781,203.02,203.01,0.03122185]
[1757089081605,1.9457049,203.02,203.01,0.03122185]
[1757089081806,9.4657049,203.02,203.01,0.03122185]
[1757089084405,9.4657049,203.02,202.9,7.45]
[1757089084597,7.52,202.97,202.9,7.45]
[1757089084803,7.52,202.94,202.86,12.45]
[1757089085106,1.9457049,202.93,202.86,12.45]
[1757089085605,0.03772737,202.92,202.86,12.45]
[1757089087508,0.03772737,202.92,202.86,5.0]
[1757089087906,0.03772737,202.92,202.87,7.45]
[1757089088712,0.03772737,202.92,202.86,5.0]
[1757089088909,0.03772737,202.92,202.86,12.45]
[1757089094304,0.03772737,202.92,202.87,7.45]
[1757089094803,0.03772737,202.92,202.86,8.39807291]
[1757089095107,0.03772737,202.92,202.87,7.45]
[1757089095300,0.03772737,202.92,202.86,5.0]
[1757089095699,0.03772737,202.92,202.87,7.45]
[1757089095902,0.03772737,202.92,202.88,3.39807291]
[1757089096299,0.03772737,202.92,202.89,7.45]
[1757089096509,0.03772737,202.92,202.88,3.39807291]
[1757089097003,0.03772737,202.92,202.89,7.45]
[1757089097207,0.03772737,202.92,202.91,10.84807291]
[1757089098008,10.91807291,203.03,202.92,7.45]
[1757089098208,1.94509619,203.02,202.94,3.39807291]
[1757089098410,1.94509619,203.01,202.95,7.72]
[1757089098712,3.39807291,203.06,202.95,11.11807291]
[1757089098906,1.94584292,203.05,202.95,11.11807291]
[1757089099113,1.94584292,203.04,202.96,7.72]
[1757089099315,1.98348553,203.03,202.96,7.72]
[1757089099508,1.94584292,203.02,202.96,7.72]
[1757089101113,0.03764261,203.03,202.96,7.72]
[1757089101315,0.03764261,203.03,202.99,7.72]
[1757089102606,0.03764261,203.03,202.99,3.39807291]
[1757089102813,0.03764261,203.03,203.0,7.72]
[1757089103013,0.03764261,203.03,202.99,3.39807291]
[1757089103212,0.03764261,203.03,202.97,7.72]
[1757089108014,0.03764261,203.03,202.99,3.39807291]
[1757089108415,0.03764261,203.03,203.0,7.72]
[1757089108615,0.03764261,203.03,202.99,7.72]
[1757089108918,0.03764261,203.03,202.98,3.39807291]
[1757089109315,7.90764261,203.03,202.99,7.72]
[1757089109618,1.94943487,203.02,202.95,7.72]
[1757089109820,0.03565133,203.03,202.95,7.72]
[1757089110120,1.94879022,203.02,202.95,7.72]
[1757089110418,1.94877096,203.01,202.95,7.72]
[1757089110721,11.26807291,203.02,202.95,7.72]
[1757089110922,1.94871525,203.01,202.95,7.72]
[1757089111132,11.26807291,203.02,202.95,7.72]
[1757089111320,1.94887587,203.01,202.95,7.72]
[1757089111520,11.26807291,203.02,202.95,7.72]
[1757089111717,1.94937705,203.01,202.95,7.72]
[1757089112022,11.26807291,203.02,202.95,7.72]
[1757089113117,1.94950605,203.01,202.9,3.39807291]
[1757089113324,9.81913742,203.0,202.9,35.69807291]
[1757089113525,1.94913742,202.99,202.9,35.69807291]
[1757089113720,0.03607115,202.97,202.9,35.69807291]
[1757089113918,0.03607115,202.97,202.9,11.11807291]
[1757089117925,0.03607115,202.97,202.87,3.39807291]
[1757089117926,1.94789621,202.96,202.87,3.39807291]
[1757089118225,9.81789621,202.95,202.86,12.72]
[1757089118520,1.94789621,202.94,202.86,12.72]
[1757089118726,0.03481198,202.93,202.86,12.72]
[1757089119022,1.94613647,202.92,202.86,12.72]
[1757089119225,7.90481198,202.93,202.86,12.72]
[1757089119523,1.94603635,202.92,202.86,12.72]
[1757089119725,7.90481198,202.93,202.86,12.72]
[1757089119927,1.94603477,202.92,202.86,12.72]
[1757089120123,7.90481198,202.93,202.86,12.72]
[1757089120324,1.94612432,202.92,202.86,12.72]
[1757089120524,7.90481198,202.93,202.86,12.72]
[1757089120725,1.94578494,202.92,202.86,12.72]
[1757089120917,7.90481198,202.93,202.86,12.72]
[1757089121122,1.94555803,202.92,202.86,12.72]
[1757089121421,7.90481198,202.93,202.86,12.72]
[1757089121628,1.94494286,202.92,202.86,12.72]
[1757089121828,7.90481198,202.93,202.86,12.72]
[1757089122024,1.94513038,202.92,202.86,12.72]
[1757089122224,7.90481198,202.93,202.86,12.72]
[1757089122426,1.94558953,202.92,202.86,12.72]
[1757089122728,7.90481198,202.93,202.86,12.72]
[1757089122921,1.94582915,202.92,202.86,12.72]
[1757089123128,7.90481198,202.93,202.86,12.72]
[1757089124724,0.03481198,202.93,202.86,12.72]